fUSD/lending_fUSD_20240614
["ID","MTS","AMOUNT","RATE_DAILY","PERIOD"]
[329421270,1718329839434,-526.24,0.00024109,2]
[329421273,1718329839472,-500.0,0.00024109,2]
[329421275,1718329839493,-500.0,0.00024109,2]
[329421277,1718329839510,-500.0,0.00024109,2]
[329421279,1718329839544,-500.0,0.00024109,2]
[329421281,1718329839565,-500.0,0.00024109,2]
[329421283,1718329839575,-771.5,0.00024109,2]
[329421284,1718329839600,-641.72,0.00024109,2]
[329421285,1718329839632,-500.0,0.00024109,2]
[329421286,1718329839642,-500.0,0.00024109,2]
[329421287,1718329839653,-500.0,0.00024109,2]
[329421288,1718329839685,-222.87636048,0.00024109,2]
[329421289,1718329839707,-277.12363952,0.00024109,2]
[329421290,1718329839718,-500.0,0.00024109,2]
[329421291,1718329839730,-500.0,0.00024109,2]
[329421292,1718329839744,-500.0,0.00024109,2]
[329421293,1718329839774,-500.0,0.00024109,2]
[329421294,1718329839785,-500.0,0.00024109,2]
[329421295,1718329839810,-500.0,0.00024109,2]
[329421296,1718329839830,-500.0,0.00024109,2]
[329421297,1718329839850,-500.0,0.00024109,2]
[329421298,1718329839865,-500.0,0.00024109,2]
[329421299,1718329839883,-500.0,0.00024109,2]
[329421300,1718329839898,-338.21422343,0.00024109,2]
[329421301,1718329839921,-161.78577657,0.00024109,2]
[329421302,1718329839945,-386.91557545,0.00024109,2]
[329421303,1718329839967,-113.08442455,0.00024109,2]
[329421304,1718329840038,-500.0,0.00024109,2]
[329421305,1718329840081,-500.0,0.00024109,2]
[329421306,1718329840098,-68.34025789,0.00024109,2]
[329421307,1718329840375,-431.65974211,0.00024109,2]
[329421308,1718329840398,-500.0,0.00024109,2]
[329421309,1718329840413,-347.21955265,0.00024109,2]
[329421310,1718329840435,-152.78044735,0.00024109,2]
[329421311,1718329840454,-500.0,0.00024109,2]
[329421312,1718329840466,-500.0,0.00024109,2]
[329421313,1718329840488,-612.48,0.00024109,2]
[329421314,1718329840521,-500.0,0.00024109,2]
[329421315,1718329840534,-271.03456068,0.00024109,2]
[329421316,1718329840557,-228.96543932,0.00024109,2]
[329421317,1718329840569,-417.91389038,0.00024109,2]
[329421318,1718329840582,-500.0,0.00024109,2]
[329421319,1718329840603,-500.0,0.00024109,2]
[329421320,1718329840632,-269.92305973,0.00024109,2]
[329421321,1718329840648,-230.07694027,0.00024109,2]
[329421322,1718329840671,-598.86,0.00024109,2]
[329421323,1718329840692,-349.52257729,0.00024109,2]
[329421324,1718329840716,-671.38742271,0.00024109,2]
[329421325,1718329840743,-500.0,0.00024109,2]
[329421326,1718329840786,-500.0,0.00024109,2]
[329421327,1718329840821,-500.0,0.00024109,2]
[329421329,1718329840832,-500.0,0.00024109,2]
[329421331,1718329840844,-500.0,0.00024109,2]
[329421332,1718329840858,-500.0,0.00024109,2]
[329421334,1718329840895,-449.68411302,0.00024109,2]
[329421336,1718329840931,-50.31588698,0.00024109,2]
[329421338,1718329840944,-500.0,0.00024109,2]
[329421340,1718329840958,-621.24,0.00024109,2]
[329421341,1718329841006,-500.0,0.00024109,2]
[329421342,1718329841018,-802.16,0.00024109,2]
[329421343,1718329841031,-500.0,0.00024109,2]
[329421344,1718329841072,-1025.39,0.00024109,2]
[329421345,1718329841109,-411.84584197,0.00024109,2]
[329421346,1718329841141,-749.07,0.00024109,2]
[329421347,1718329841176,-613.60683447,0.00024109,2]
[329421348,1718329841188,-500.0,0.00024109,2]
[329421349,1718329841235,-500.0,0.00024109,2]
[329421350,1718329841247,-500.0,0.00024109,2]
[329421351,1718329841261,-500.0,0.00024109,2]
[329421352,1718329841272,-500.0,0.00024109,2]
[329421353,1718329841305,-500.0,0.00024109,2]
[329421354,1718329841340,-625.95,0.00024109,2]
[329421355,1718329841352,-500.0,0.00024109,2]
[329421356,1718329841366,-695.14,0.00024109,2]
[329421357,1718329841394,-500.0,0.00024109,2]
[329421358,1718329841411,-594.63,0.00024109,2]
[329421359,1718329841438,-500.0,0.00024109,2]
[329421360,1718329841452,-500.0,0.00024109,2]
[329421361,1718329841465,-500.0,0.00024109,2]
[329421362,1718329841492,-510.89,0.00024109,2]
[329421363,1718329841506,-810.56,0.00024109,2]
[329421364,1718329841518,-500.0,0.00024109,2]
[329421365,1718329841537,-620.16,0.00024109,2]
[329421366,1718329841592,-644.0,0.00024109,2]
[329421367,1718329841614,-500.0,0.00024109,2]
[329421368,1718329841639,-500.0,0.00024109,2]
[329421369,1718329841689,-500.0,0.00024109,2]
[329421370,1718329841713,-500.0,0.00024109,2]
[329421371,1718329841768,-500.0,0.00024109,2]
[329421372,1718329841782,-500.0,0.00024109,2]
[329421373,1718329841797,-500.0,0.00024109,2]
[329421374,1718329841824,-500.0,0.00024109,2]
[329421375,1718329841842,-500.0,0.00024109,2]
[329421376,1718329841871,-500.0,0.00024109,2]
[329421377,1718329841889,-374.91250501,0.00024109,2]
[329421378,1718329841964,-125.08749499,0.00024109,2]
[329421379,1718329841983,-500.0,0.00024109,2]
[329421380,1718329842201,-500.0,0.00024109,2]
[329421381,1718329842225,-637.11,0.00024109,2]
[329421382,1718329842288,-500.0,0.00024109,2]
[329421383,1718329842300,-500.0,0.00024109,2]
[329421384,1718329842312,-500.0,0.00024109,2]
[329421385,1718329842326,-500.0,0.00024109,2]
[329421386,1718329842352,-500.0,0.00024109,2]
[329421387,1718329842364,-500.0,0.00024109,2]
[329421388,1718329842382,-500.0,0.00024109,2]
[329421389,1718329842393,-500.0,0.00024109,2]
[329421390,1718329842419,-500.0,0.00024109,2]
[329421391,1718329842431,-500.0,0.00024109,2]
[329421392,1718329842441,-500.0,0.00024109,2]
[329421393,1718329842452,-731.43,0.00024109,2]
[329421394,1718329842464,-500.0,0.00024109,2]
[329421395,1718329842475,-556.28910135,0.00024109,2]
[329421396,1718329842523,-500.0,0.00024109,2]
[329421397,1718329842534,-500.0,0.00024109,2]
[329421398,1718329842569,-500.0,0.00024109,2]
[329421399,1718329842594,-533.52,0.00024109,2]
[329421400,1718329842606,-500.0,0.00024109,2]
[329421401,1718329842625,-500.0,0.00024109,2]
[329421402,1718329842645,-19.10215874,0.00024109,2]
[329421427,1718329843976,-480.89784126,0.00024109,2]
[329421428,1718329844001,-500.0,0.00024109,2]
[329421429,1718329844018,-500.0,0.00024109,2]
[329421430,1718329844029,-500.0,0.00024109,2]
[329421431,1718329844041,-500.0,0.00024109,2]
[329421432,1718329844057,-500.0,0.00024109,2]
[329421433,1718329844087,-599.58,0.00024109,2]
[329421434,1718329844109,-500.0,0.00024109,2]
[329421435,1718329844124,-503.36823151,0.00024109,2]
[329421436,1718329844136,-500.0,0.00024109,2]
[329421437,1718329844164,-500.0,0.00024109,2]
[329421438,1718329844184,-500.0,0.00024109,2]
[329421439,1718329844205,-500.0,0.00024109,2]
[329421440,1718329844217,-250.0,0.00024109,2]
[329421441,1718329844248,-500.0,0.00024109,2]
[329421442,1718329844261,-904.8,0.00024109,2]
[329421443,1718329844297,-500.0,0.00024109,2]
[329421445,1718329844338,-500.0,0.00024109,2]
[329421447,1718329844349,-780.74,0.00024109,2]
[329421449,1718329844368,-500.0,0.00024109,2]
[329421451,1718329844389,-500.0,0.00024109,2]
[329421453,1718329844403,-500.0,0.00024109,2]
[329421454,1718329844413,-500.0,0.00024109,2]
[329421457,1718329844439,-500.0,0.00024109,2]
[329421459,1718329844456,-500.0,0.00024109,2]
[329421461,1718329844477,-445.06360229,0.00024109,2]
[329421464,1718329844651,-54.93639771,0.00024109,2]
[329421465,1718329844663,-615.82,0.00024109,2]
[329421466,1718329844696,-500.0,0.00024109,2]
[329421467,1718329844718,-500.0,0.00024109,2]
[329421468,1718329844758,-500.0,0.00024109,2]
[329421469,1718329844769,-501.56,0.00024109,2]
[329421470,1718329844786,-205.55977099,0.00024109,2]
[329421471,1718329844815,-185.3,0.00024109,2]
[329421472,1718329844876,-734.92,0.00024109,2]
[329421473,1718329844889,-500.0,0.00024109,2]
[329421474,1718329844912,-500.0,0.00024109,2]
[329421475,1718329844923,-500.0,0.00024109,2]
[329421476,1718329844936,-500.0,0.00024109,2]
[329421477,1718329844960,-500.0,0.00024109,2]
[329421478,1718329844972,-464.54671758,0.00024109,2]
[329421479,1718329844997,-500.0,0.00024109,2]
[329421480,1718329845009,-500.0,0.00024109,2]
[329421481,1718329845021,-500.0,0.00024109,2]
[329421482,1718329845033,-500.0,0.00024109,2]
[329421483,1718329845058,-500.0,0.00024109,2]
[329421484,1718329845075,-500.0,0.00024109,2]
[329421485,1718329845086,-500.0,0.00024109,2]
[329421486,1718329845099,-538.29,0.00024109,2]
[329421487,1718329845156,-500.0,0.00024109,2]
[329421488,1718329845173,-500.0,0.00024109,2]
[329421489,1718329845188,-500.0,0.00024109,2]
[329421490,1718329845220,-500.0,0.00024109,2]
[329421491,1718329845236,-500.0,0.00024109,2]
[329421492,1718329845261,-500.0,0.00024109,2]
[329421493,1718329845290,-720.9,0.00024109,2]
[329421494,1718329845319,-500.0,0.00024109,2]
[329421495,1718329845330,-739.59,0.00024109,2]
[329421496,1718329845342,-500.0,0.00024109,2]
[329421497,1718329845372,-500.0,0.00024109,2]
[329421498,1718329845383,-500.0,0.00024109,2]
[329421499,1718329845398,-500.0,0.00024109,2]
[329421500,1718329845427,-500.0,0.00024109,2]
[329421501,1718329845456,-500.0,0.00024109,2]
[329421502,1718329845484,-500.0,0.00024109,2]
[329421503,1718329845508,-500.0,0.00024109,2]
[329421504,1718329845581,-500.0,0.00024109,2]
[329421505,1718329845592,-500.0,0.00024109,2]
[329421506,1718329845621,-500.0,0.00024109,2]
[329421507,1718329845637,-500.0,0.00024109,2]
[329421508,1718329845648,-2312.84,0.00024109,2]
[329421509,1718329845665,-500.0,0.00024109,2]
[329421510,1718329845692,-746.33,0.00024109,2]
[329421511,1718329845768,-118.18831683,0.00024109,2]
[329421512,1718329845784,-527.11168317,0.00024109,2]
[329421513,1718329845796,-95.72547178,0.00024109,2]
[329421514,1718329845819,-404.27452822,0.00024109,2]
[329421515,1718329845832,-500.0,0.00024109,2]
[329421516,1718329845850,-500.0,0.00024109,2]
[329421517,1718329845862,-500.0,0.00024109,2]
[329421518,1718329845892,-23.96236678,0.00024109,2]
[329421519,1718329846306,-325.96998674,0.00024009,2]
[329421520,1718329846333,-476.03763322,0.00024109,2]
[329421521,1718329846350,-500.0,0.00024109,2]
[329421522,1718329846364,-183.99237986,0.00024109,2]
[329421523,1718329846378,-316.00762014,0.00024109,2]
[329421524,1718329846391,-1874.01605858,0.00024109,2]
[329421525,1718329846441,-672.29394142,0.00024109,2]
[329421526,1718329846454,-500.0,0.00024109,2]
[329421527,1718329846492,-500.0,0.00024109,2]
[329421528,1718329846511,-500.0,0.00024109,2]
[329421529,1718329846534,-500.0,0.00024109,2]
[329421530,1718329846546,-500.0,0.00024109,2]
[329421531,1718329846580,-500.0,0.00024109,2]
[329421532,1718329846593,-500.0,0.00024109,2]
[329421533,1718329846613,-500.0,0.00024109,2]
[329421534,1718329846642,-712.42,0.00024109,2]
[329421535,1718329846655,-706.84,0.00024109,2]
[329421536,1718329846691,-500.0,0.00024109,2]
[329421537,1718329846721,-500.0,0.00024109,2]
[329421538,1718329846733,-738.38,0.00024109,2]
[329421540,1718329846756,-500.0,0.00024109,2]
[329421542,1718329846781,-500.0,0.00024109,2]
[329421544,1718329846792,-500.0,0.00024109,2]
[329421545,1718329846805,-500.0,0.00024109,2]
[329421546,1718329846818,-500.0,0.00024109,2]
[329421547,1718329846843,-500.0,0.00024109,2]
[329421548,1718329846872,-500.0,0.00024109,2]
[329421549,1718329846896,-538.7,0.00024109,2]
[329421550,1718329846920,-500.0,0.00024109,2]
[329421551,1718329846954,-734.23,0.00024109,2]
[329421552,1718329846972,-500.0,0.00024109,2]
[329421553,1718329846986,-811.75,0.00024109,2]
[329421554,1718329846998,-978.39696557,0.00024109,2]
[329421569,1718329847323,-4254.21303443,0.00024109,2]
[329421570,1718329847335,-500.0,0.00024109,2]
[329421571,1718329847360,-500.0,0.00024109,2]
[329421572,1718329847379,-1315.57,0.00024109,2]
[329421573,1718329847394,-1927.48,0.00024109,2]
[329421576,1718329847414,-500.0,0.00024109,2]
[329421577,1718329847434,-500.0,0.00024109,2]
[329421578,1718329847460,-500.0,0.00024109,2]
[329421579,1718329847471,-500.0,0.00024109,2]
[329421580,1718329847482,-914.92,0.00024109,2]
[329421581,1718329847496,-500.0,0.00024109,2]
[329421582,1718329847516,-500.0,0.00024109,2]
[329421583,1718329847527,-522.61,0.00024109,2]
[329421584,1718329847541,-500.0,0.00024109,2]
[329421585,1718329847558,-130.20696557,0.00024109,2]
[329421586,1718329847578,-607.86303443,0.00024109,2]
[329421587,1718329847603,-500.0,0.00024109,2]
[329421588,1718329847618,-595.89,0.00024109,2]
[329421589,1718329847629,-386.99630674,0.00024109,2]
[329421590,1718329847642,-4346.24,0.00024109,2]
[329421591,1718329847663,-500.0,0.00024109,2]
[329421593,1718329847674,-500.0,0.00024109,2]
[329421595,1718329847685,-500.0,0.00024109,2]
[329421598,1718329847697,-500.0,0.00024109,2]
[329421599,1718329847713,-2017.22,0.00024109,2]
[329421601,1718329847740,-500.0,0.00024109,2]
[329421602,1718329847753,-698.43,0.00024109,2]
[329421603,1718329847765,-500.0,0.00024109,2]
[329421604,1718329847785,-500.0,0.00024109,2]
[329421605,1718329847799,-690.02,0.00024109,2]
[329421606,1718329847816,-500.0,0.00024109,2]
[329421607,1718329847829,-500.0,0.00024109,2]
[329421608,1718329847839,-500.0,0.00024109,2]
[329421609,1718329847854,-713.88,0.00024109,2]
[329421610,1718329847888,-551.07,0.00024109,2]
[329421611,1718329847903,-500.0,0.00024109,2]
[329421612,1718329847916,-794.24,0.00024109,2]
[329421613,1718329847932,-785.3,0.00024109,2]
[329421614,1718329847962,-1263.69,0.00024109,2]
[329421615,1718329847991,-134.05975883,0.00024109,2]
[329421616,1718329848008,-1449.85024117,0.00024109,2]
[329421618,1718329848028,-562.87,0.00024109,2]
[329421619,1718329848043,-500.0,0.00024109,2]
[329421620,1718329848056,-500.0,0.00024109,2]
[329421621,1718329848068,-500.0,0.00024109,2]
[329421622,1718329848097,-500.0,0.00024109,2]
[329421623,1718329848117,-528.45,0.00024109,2]
[329421624,1718329848166,-967.72,0.00024109,2]
[329421625,1718329848190,-3644.52,0.00024109,2]
[329421626,1718329848228,-1028.38,0.00024109,2]
[329421627,1718329848240,-500.0,0.00024109,2]
[329421628,1718329848259,-744.0,0.00024109,2]
[329421629,1718329848300,-500.0,0.00024109,2]
[329421633,1718329848348,-540.91102613,0.00024109,2]
[329421637,1718329848383,-500.0,0.00024109,2]
[329421642,1718329848411,-500.0,0.00024109,2]
[329421644,1718329848449,-500.0,0.00024109,2]
[329421645,1718329848492,-500.0,0.00024109,2]
[329421646,1718329848503,-519.3,0.00024109,2]
[329421647,1718329848523,-308.13667249,0.00024109,2]
[329421648,1718329848533,-6885.52,0.00024109,2]
[329421649,1718329848556,-858.45,0.00024109,2]
[329421650,1718329848572,-3143.2,0.00024109,2]
[329421651,1718329848582,-1414.07,0.00024109,2]
[329421652,1718329848593,-544.69,0.00024109,2]
[329421653,1718329848605,-500.0,0.00024109,2]
[329421654,1718329848621,-500.0,0.00024109,2]
[329421655,1718329848632,-393.52069921,0.00024109,2]
[329421656,1718329848644,-500.0,0.00024109,2]
[329421657,1718329848655,-1190.15666068,0.00024109,2]
[329421658,1718329848674,-6342.43500514,0.00024109,2]
[329421659,1718329848687,-4991.33,0.00024109,2]
[329421660,1718329848708,-6973.94833418,0.00024109,2]
[329421661,1718329848719,-500.0,0.00024109,2]
[329421662,1718329848731,-500.0,0.00024109,2]
[329421663,1718329848764,-500.0,0.00024109,2]
[329421664,1718329848777,-500.0,0.00024109,2]
[329421665,1718329848788,-271.47943291,0.00024109,2]
[329421666,1718329848800,-930.18082389,0.00024109,2]
[329421667,1718329848813,-678.22150474,0.00024109,2]
[329421668,1718329849596,-567.18822722,0.00024109,2]
[329421669,1718329849885,-1331.80944415,0.00024109,2]
[329421670,1718329849902,-757.75873496,0.00024109,2]
[329421671,1718329849942,-982.62126504,0.00024109,2]
[329421672,1718329849957,-500.0,0.00024109,2]
[329421673,1718329849980,-725.66,0.00024109,2]
[329421674,1718329849991,-500.0,0.00024109,2]
[329421675,1718329850012,-710.82,0.00024109,2]
[329421676,1718329850023,-500.0,0.00024109,2]
[329421677,1718329850037,-1247.89,0.00024109,2]
[329421678,1718329850069,-1459.88,0.00024109,2]
[329421679,1718329850124,-500.0,0.00024109,2]
[329421680,1718329850166,-1596.05,0.00024109,2]
[329421681,1718329850185,-500.0,0.00024109,2]
[329421682,1718329850208,-500.0,0.00024109,2]
[329421683,1718329850220,-500.0,0.00024109,2]
[329421684,1718329850232,-763.24,0.00024109,2]
[329421685,1718329850243,-500.0,0.00024109,2]
[329421686,1718329850262,-500.0,0.00024109,2]
[329421687,1718329850284,-500.0,0.00024109,2]
[329421688,1718329850323,-500.0,0.00024109,2]
[329421689,1718329850349,-500.0,0.00024109,2]
[329421690,1718329850376,-500.0,0.00024109,2]
[329421691,1718329850393,-500.0,0.00024109,2]
[329421692,1718329850404,-923.18,0.00024109,2]
[329421693,1718329850415,-500.0,0.00024109,2]
[329421694,1718329850428,-500.0,0.00024109,2]
[329421695,1718329850440,-500.0,0.00024109,2]
[329421696,1718329850452,-500.0,0.00024109,2]
[329421697,1718329850463,-500.0,0.00024109,2]
[329421698,1718329850475,-2106.23,0.00024109,2]
[329421699,1718329850486,-500.0,0.00024109,2]
[329421700,1718329850499,-500.0,0.00024109,2]
[329421701,1718329850510,-504.54,0.00024109,2]
[329421703,1718329850560,-1539.25,0.00024109,2]
[329421704,1718329850573,-500.0,0.00024109,2]
[329421705,1718329850584,-516.49,0.00024109,2]
[329421706,1718329850604,-1036.84,0.00024109,2]
[329421707,1718329850616,-8388.73,0.00024109,2]
[329421708,1718329850632,-500.0,0.00024109,2]
[329421709,1718329850645,-2997.79,0.00024109,2]
[329421710,1718329850688,-1701.31,0.00024109,2]
[329421711,1718329850707,-500.0,0.00024109,2]
[329421712,1718329850718,-214.56674772,0.00024109,2]
[329421713,1718329850734,-853.3,0.00024109,2]
[329421714,1718329850750,-6425.34,0.00024109,2]
[329421715,1718329850769,-713.37,0.00024109,2]
[329421716,1718329850781,-712.85,0.00024109,2]
[329421717,1718329850799,-500.0,0.00024109,2]
[329421718,1718329850816,-500.0,0.00024109,2]
[329421719,1718329850831,-1143.4,0.00024109,2]
[329421720,1718329850858,-500.0,0.00024109,2]
[329421721,1718329850880,-500.0,0.00024109,2]
[329421722,1718329850902,-200.0,0.00024109,2]
[329421723,1718329850916,-14213.73,0.00024109,2]
[329421724,1718329850932,-970.67,0.00024109,2]
[329421725,1718329850947,-500.0,0.00024109,2]
[329421726,1718329850959,-500.0,0.00024109,2]
[329421727,1718329850970,-500.0,0.00024109,2]
[329421728,1718329850981,-500.0,0.00024109,2]
[329421729,1718329850992,-824.99,0.00024109,2]
[329421730,1718329851003,-508.77,0.00024109,2]
[329421731,1718329851021,-772.8,0.00024109,2]
[329421732,1718329851036,-500.0,0.00024109,2]
[329421733,1718329851046,-1559.88,0.00024109,2]
[329421734,1718329851058,-18236.24,0.00024109,2]
[329421735,1718329851072,-500.0,0.00024109,2]
[329421736,1718329851083,-788.77,0.00024109,2]
[329421737,1718329851099,-814.94,0.00024109,2]
[329421738,1718329851113,-1138.87,0.00024109,2]
[329421739,1718329851128,-500.0,0.00024109,2]
[329421740,1718329851139,-500.0,0.00024109,2]
[329421741,1718329851151,-500.0,0.00024109,2]
[329421742,1718329851161,-500.0,0.00024109,2]
[329421743,1718329851176,-500.0,0.00024109,2]
[329421744,1718329851204,-3010.8,0.00024109,2]
[329421745,1718329851215,-500.0,0.00024109,2]
[329421746,1718329851225,-500.0,0.00024109,2]
[329421747,1718329851244,-1211.77,0.00024109,2]
[329421748,1718329851260,-954.02,0.00024109,2]
[329421749,1718329851271,-500.0,0.00024109,2]
[329421750,1718329851282,-2613.92,0.00024109,2]
[329421751,1718329851297,-500.0,0.00024109,2]
[329421752,1718329851314,-500.0,0.00024109,2]
[329421753,1718329851327,-1139.77,0.00024109,2]
[329421754,1718329851341,-1326.27,0.00024109,2]
[329421755,1718329851352,-500.0,0.00024109,2]
[329421756,1718329851363,-1034.21,0.00024109,2]
[329421757,1718329851381,-1703.47,0.00024109,2]
[329421758,1718329851391,-750.83,0.00024109,2]
[329421759,1718329851402,-737.6,0.00024109,2]
[329421760,1718329851417,-500.0,0.00024109,2]
[329421761,1718329851436,-500.0,0.00024109,2]
[329421762,1718329851446,-1284.33,0.00024109,2]
[329421763,1718329851456,-2561.07,0.00024109,2]
[329421764,1718329851467,-500.0,0.00024109,2]
[329421765,1718329851480,-1306.03,0.00024109,2]
[329421766,1718329851491,-500.0,0.00024109,2]
[329421767,1718329851502,-500.0,0.00024109,2]
[329421768,1718329851513,-663.01,0.00024109,2]
[329421769,1718329851524,-500.0,0.00024109,2]
[329421770,1718329851535,-2161.7,0.00024109,2]
[329421771,1718329851550,-500.0,0.00024109,2]
[329421772,1718329851561,-500.0,0.00024109,2]
[329421773,1718329851573,-500.0,0.00024109,2]
[329421774,1718329851585,-4069.95,0.00024109,2]
[329421775,1718329851595,-1384.56,0.00024109,2]
[329421776,1718329851606,-1695.26,0.00024109,2]
[329421777,1718329851618,-500.0,0.00024109,2]
[329421778,1718329851629,-682.29,0.00024109,2]
[329421779,1718329851644,-500.0,0.00024109,2]
[329421780,1718329851655,-8569.36,0.00024109,2]
[329421781,1718329851667,-1116.19,0.00024109,2]
[329421782,1718329851691,-500.0,0.00024109,2]
[329421783,1718329851713,-500.0,0.00024109,2]
[329421784,1718329851724,-500.0,0.00024109,2]
[329421785,1718329851736,-518.86,0.00024109,2]
[329421786,1718329851748,-669.39,0.00024109,2]
[329421787,1718329851765,-661.47,0.00024109,2]
[329421788,1718329851785,-500.0,0.00024109,2]
[329421789,1718329851799,-1788.93,0.00024109,2]
[329421790,1718329851812,-2545.55,0.00024109,2]
[329421791,1718329851826,-691.74,0.00024109,2]
[329421792,1718329851869,-1814.53,0.00024109,2]
[329421793,1718329851881,-500.0,0.00024109,2]
[329421794,1718329851909,-500.0,0.00024109,2]
[329421795,1718329851922,-500.0,0.00024109,2]
[329421796,1718329851936,-2594.63,0.00024109,2]
[329421797,1718329851950,-509.61,0.00024109,2]
[329421798,1718329851978,-754.17,0.00024109,2]
[329421799,1718329851997,-500.0,0.00024109,2]
[329421800,1718329852010,-500.0,0.00024109,2]
[329421801,1718329852022,-2889.87,0.00024109,2]
[329421802,1718329852035,-527.54,0.00024109,2]
[329421803,1718329852048,-8645.55,0.00024109,2]
[329421804,1718329852080,-500.0,0.00024109,2]
[329421805,1718329852096,-1424.48,0.00024109,2]
[329421806,1718329852142,-1548.18,0.00024109,2]
[329421807,1718329852196,-1670.07,0.00024109,2]
[329421808,1718329852214,-1790.01,0.00024109,2]
[329421809,1718329852248,-500.0,0.00024109,2]
[329421810,1718329852268,-2617.75,0.00024109,2]
[329421811,1718329852283,-500.0,0.00024109,2]
[329421812,1718329852295,-2824.15,0.00024109,2]
[329421813,1718329852310,-500.0,0.00024109,2]
[329421814,1718329852321,-500.0,0.00024109,2]
[329421815,1718329852332,-1525.09,0.00024109,2]
[329421816,1718329852346,-863.29,0.00024109,2]
[329421817,1718329852363,-1816.42,0.00024109,2]
[329421818,1718329852381,-500.0,0.00024109,2]
[329421819,1718329852394,-500.0,0.00024109,2]
[329421820,1718329852414,-500.0,0.00024109,2]
[329421821,1718329852426,-859.93,0.00024109,2]
[329421822,1718329852443,-500.0,0.00024109,2]
[329421823,1718329852455,-500.0,0.00024109,2]
[329421824,1718329852472,-500.0,0.00024109,2]
[329421825,1718329852484,-573.12373093,0.00024109,2]
[329421826,1718329852500,-954.74,0.00024109,2]
[329421827,1718329852528,-500.0,0.00024109,2]
[329421828,1718329852549,-500.0,0.00024109,2]
[329421829,1718329852560,-952.86,0.00024109,2]
[329421830,1718329852579,-614.92,0.00024109,2]
[329421831,1718329852612,-522.21,0.00024109,2]
[329421832,1718329852625,-467.42129757,0.00024283,2]
[329421833,1718329852635,-1596.89,0.00024382,2]
[329421834,1718329852651,-523.53,0.00024382,2]
[329421835,1718329852671,-1611.8,0.00024382,2]
[329421836,1718329852694,-1026.92,0.00024382,2]
[329421837,1718329852719,-5934.88,0.00024382,2]
[329421838,1718329852730,-1007.25,0.00024382,2]
[329421839,1718329852743,-500.0,0.00024382,2]
[329421840,1718329852768,-2123.94,0.00024382,2]
[329421841,1718329852784,-943.36,0.00024382,2]
[329421842,1718329852795,-1675.45,0.00024382,2]
[329421843,1718329852808,-870.7,0.00024382,2]
[329421844,1718329852821,-547.75,0.00024382,2]
[329421845,1718329852837,-3954.16,0.00024382,2]
[329421846,1718329852854,-1779.46,0.00024382,2]
[329421847,1718329852865,-2709.71,0.00024382,2]
[329421848,1718329852876,-3157.36,0.00024382,2]
[329421849,1718329852892,-500.0,0.00024383,2]
[329421850,1718329852915,-500.0,0.00024383,2]
[329421851,1718329852936,-500.0,0.00024383,2]
[329421852,1718329852948,-500.0,0.00024383,2]
[329421853,1718329852960,-500.0,0.00024383,2]
[329421854,1718329852971,-500.0,0.00024383,2]